Cogmind - Beta 14 @@@ ROGUE MODE // 2024.09.30 @ 22:01:08 Player: Dazz Result: Destroyed by G-34 Mercenary with Small Laser Performance ------------- Evolutions (1) 500 Regions Visited (4) 800 Robots Destroyed (47) 235 Value Destroyed (957) 957 Prototype IDs (3) 60 Alien Tech Used (0) 0 Bonus (0) 0 TOTAL SCORE: 2552 Bonus ------- None Cogmind --------- Core Integrity 0/400 Matter 227/300 Energy 100/100 System Corruption 0% Temperature Cool (6) Movement Core (1350) Ox26 Location -9/Mines Parts ------- > --- POWER (2) -------- (None) > --- PROPULSION (2) --- Armored Wheel > --- UTILITY (3) ------ Huge Storage Unit Terrain Scan Processor > --- WEAPON (2) ------- (None) > --- INVENTORY (25) --- Heat Sink Large Storage Unit High-capacity Matter Pod (0) Sensor Array Signal Interpreter Terrain Scanner Terrain Scanner Propulsion Shielding Light Armor Plating Peak State ------------ > --- POWER ------------ Light Ion Engine Light Ion Engine > --- PROPULSION ------- Wheel Wheel > --- UTILITY ---------- Huge Storage Unit Visual Processing Unit Terrain Scan Processor > --- WEAPON ----------- Assault Rifle Light Cannon > --- INVENTORY -------- Wheel Wheel Compact Wheel Armored Wheel Heat Sink Large Storage Unit High-capacity Matter Pod Sensor Array Experimental Sensor Array Signal Interpreter Terrain Scanner Terrain Scanner Terrain Scanner Propulsion Shielding Grenade Launcher [Rating: 13] Favorites ----------- Power Ion Engine Engine Ion Engine Propulsion Wheel Wheel Wheel Utility Visual Processing Unit Device Terrain Scanner Storage Huge Storage Unit Processor Visual Processing Unit Weapon Shotgun Ballistic Gun Shotgun Ballistic Cannon Light Cannon Launcher Grenade Launcher Build | -11 -10 -10 -9 -9 ------- Run | Yrd Mat Min Mat Min Slots Evolved 2 | . . . 2 . Power 1 | . . . 1 . Propulsion . | . . . . . Utility 1 | . . . 1 . Weapon . | . . . . . Parts Attached 34 | 5 9 4 10 6 Power 6 | 1 . 1 3 1 Engine 6 | 1 . 1 3 1 Core . | . . . . . Reactor . | . . . . . Propulsion 11 | 2 1 2 2 4 Treads . | . . . . . Leg . | . . . . . Wheel 11 | 2 1 2 2 4 Hover . | . . . . . Flight . | . . . . . Utility 8 | 1 3 1 3 . Device 3 | . 1 . 2 . Storage 3 | 1 1 1 . . Processor 2 | . 1 . 1 . Hackware . | . . . . . Protection . | . . . . . Artifact . | . . . . . Weapon 9 | 1 5 . 2 1 Energy Gun . | . . . . . Energy Cannon . | . . . . . Ballistic Gun 7 | 1 5 . 1 . Ballistic Cannon 1 | . . . 1 . Launcher 1 | . . . . 1 Special Weapon . | . . . . . Impact Weapon . | . . . . . Slashing Weapon . | . . . . . Piercing Weapon . | . . . . . Special Melee Weapon . | . . . . . Unidentified Prototypes . | . . . . . Parts Lost 13 | . . . 5 8 Power 3 | . . . 1 2 Propulsion 6 | . . . 3 3 Utility 1 | . . . . 1 Weapon 3 | . . . 1 2 Highest Loss Streak 4 | . . . 3 4 To Critical Strikes . | . . . . . Average Slot Usage (%) 89 | . 98 100 86 59 Engine 13 | . 14 14 15 2 Wheel 24 | . 27 28 20 20 Device 4 | . 2 . 7 5 Storage 12 | . 14 14 11 11 Processor 11 | . 11 14 11 11 Ballistic Gun 19 | . 27 28 14 . Ballistic Cannon 2 | . . . 6 4 Peak Build Rating 13 | 5 11 12 13 10 Average Rating 10 | 3 10 11 11 7 On Entrance 7 | . 5 11 12 7 Naked Turns . | . . . . . Heaviest Build 92 | 12 31 91 92 89 Greatest Support 26 | 26 26 26 20 26 Greatest Overweight (x) 28 | 2 1 4 28 4 Average Overweight (x) 2 | . . 1 4 3 Largest Inventory Capacity 25 | 8 15 25 25 25 Average Capacity 20 | 6 13 19 25 25 Most Carried 17 | 3 15 17 16 13 Average Carried 12 | 1 9 15 13 10 Final Capacity 25 | 8 15 25 25 25 Final Carried 15 | 2 15 14 14 9 Class Distribution -------------------- 78% | Mutant 21% | Scavenger-Mutant Dominant Class ---------------- Mutant | -10/Materials Mutant | -10/Mines Scavenger-Mutant | -9/Materials Mutant | -9/Mines Resources | -11 -10 -10 -9 -9 ----------- Run | Yrd Mat Min Mat Min Matter Collected 1246 | 245 421 168 357 55 Remotely . | . . . . . Salvage Created 1162 | . 416 203 399 144 Parts 90 | . 29 15 39 7 Haulers Intercepted . | . . . . . Recyclers Shooed 1 | . 1 . . . Parts Field Recycled . | . . . . . Retrieved Matter . | . . . . . Parts Self-Destructed . | . . . . . Prevented . | . . . . . Kills | -11 -10 -10 -9 -9 ------- Run | Yrd Mat Min Mat Min Combat Hostiles Destroyed 32 | . 9 10 8 5 Guns 23 | . 9 10 4 . Cannons 6 | . . . 4 2 AOE 3 | . . . . 3 Classes Destroyed 8 | . 4 . 3 1 Worker 5 | . 3 1 1 . Builder 3 | . . . 2 1 Recycler 1 | . . . 1 . Watcher 6 | . 3 . 3 . Swarmer 15 | . 3 8 4 . Grunt 14 | . 6 2 2 4 Duelist 1 | . . . . 1 Sentry 2 | . . . 2 . Best Kill Streak 3 | . 3 3 3 3 Combat Bots Only 3 | . 2 3 2 3 Max Kills in Single Turn 2 | . 2 2 1 2 Gunslinging 1 | . 1 1 . . Exploded 1 | . . . . 1 Melee . | . . . . . Uniques/NPCs Destroyed . | . . . . . Combat | -11 -10 -10 -9 -9 -------- Run | Yrd Mat Min Mat Min Hostile Shots Fired 247 | . 46 36 89 76 Missed 60 | . 11 9 21 19 Damage Taken 1989 | . 370 252 657 710 Core 545 | . 83 59 130 273 Absorbed by Shields . | . . . . . Core Remaining (%) 71 | 100 . 43 . . Volleys Fired 117 | . 41 20 43 13 Largest 2 | . 2 2 2 2 Hottest 65 | . 46 46 55 65 Shots Fired 211 | . 83 32 75 21 Gun 171 | . 83 32 56 . Cannon 32 | . . . 19 13 Launcher 8 | . . . . 8 Special . | . . . . . Kinetic 203 | . 83 32 75 13 Thermal . | . . . . . Explosive 8 | . . . . 8 Electromagnetic . | . . . . . Robot Hit Streak 9 | . 9 7 6 3 Robot Miss Streak 12 | . 6 6 12 3 Penetration Max . | . . . . . Secondary Targets 3 | . 1 2 . . Max Gunslinging Chain 1 | . 1 1 . . Shots Hit Robots 114 | . 44 24 39 7 Core Hits 71 | . 23 15 20 13 Critical Kills 1 | . 1 . . . Critical Parts Destroyed . | . . . . . Critical Strikes 2 | . 1 . 1 . Destroy 1 | . 1 . . . Blast 1 | . . . 1 . Melee Attacks . | . . . . . Impact . | . . . . . Slashing . | . . . . . Piercing . | . . . . . Sneak Attacks . | . . . . . Combat Hostiles . | . . . . . Follow-up Attacks . | . . . . . Damage Inflicted 1943 | . 615 366 519 443 Guns 1328 | . 613 366 349 . Cannons 240 | . . . 170 70 Explosions 304 | . . . . 304 Melee . | . . . . . Ramming 71 | . 2 . . 69 Kinetic 1568 | . 613 366 519 70 Thermal . | . . . . . Explosive 304 | . . . . 304 Electromagnetic . | . . . . . Impact . | . . . . . Slashing . | . . . . . Piercing . | . . . . . Highest Corruption 3 | . 3 3 . . Average Corruption 2 | . 1 3 . . Corruption Purged . | . . . . . Corruption Blocked . | . . . . . Effects 13 | . 3 10 . . Message Errors 3 | . . 3 . . Matter Fused 2 | . . 2 . . Energy Discharges 3 | . 2 1 . . Data Loss (minor) 3 | . . 3 . . Misfires 1 | . 1 . . . Weapon Failures 1 | . . 1 . . Overload Shots . | . . . . . Overflow Damage . | . . . . . Projectiles . | . . . . . Explosions . | . . . . . Melee . | . . . . . Knockbacks 4 | . . . 2 2 Impact 1 | . . . . 1 Kinetic 3 | . . . 2 1 Secondary . | . . . . . Self-Inflicted Damage 58 | . 1 . . 57 Shots 2 | . . . . 2 Rammed 10 | . 1 . . 9 Targets Rammed 10 | . 1 . . 9 Kicked . | . . . . . Crushed . | . . . . . Highest Temperature 32 | . 32 4 27 20 Average Temperature 10 | . 9 4 11 10 Received Heat Transfer 741 | . 147 51 147 396 Siege Activations . | . . . . . Robots Corrupted 1 | . . . . 1 Combat Hostiles . | . . . . . Parts Fried 3 | . . . . 3 Impact Corruptions 1 | . . . . 1 Robots Melted . | . . . . . Combat Hostiles . | . . . . . Parts Melted . | . . . . . Heat Transferred . | . . . . . Parts Sabotaged . | . . . . . Parts Stolen . | . . . . . Parts Stripped . | . . . . . Power Chain Reactions . | . . . . . Alert | -11 -10 -10 -9 -9 ------- Run | Yrd Mat Min Mat Min Peak Influence 309 | . 309 227 285 155 Initial 82 | . . 82 66 15 Average 136 | . 185 136 113 115 Maximum Alert Level 1 | . 1 1 1 . Low Security (%) 78 | 100 49 89 84 100 Level 1 21 | . 50 10 15 . Level 2 . | . . . . . Level 3 . | . . . . . Level 4 . | . . . . . Level 5 . | . . . . . High Security . | . . . . . Max Security . | . . . . . Squads Dispatched 3 | . 1 . 2 . Investigation 2 | . . . 2 . Extermination . | . . . . . Reinforcement 1 | . 1 . . . Assault . | . . . . . Garrison . | . . . . . Intercept . | . . . . . Searches Triggered . | . . . . . Construction Impeded . | . . . . . Haulers Reinforced . | . . . . . Active Scanning Responses . | . . . . . Cargo Convoy Interrupts . | . . . . . Stealth | -11 -10 -10 -9 -9 --------- Run | Yrd Mat Min Mat Min Distress Signals 2 | . 1 . 1 . Communications Jammed . | . . . . . Distress Signals . | . . . . . Times Spotted 59 | . 18 14 21 6 Peak Tracking Total 6 | . 5 3 6 3 Tactical Retreats 4 | . 1 1 2 . Traps | -11 -10 -10 -9 -9 ------- Run | Yrd Mat Min Mat Min Traps Triggered 2 | . 1 . 1 . Indirectly . | . . . . . Trap Hack Attempts . | . . . . . Triggered . | . . . . . Disarmed . | . . . . . Reprogrammed . | . . . . . Reused . | . . . . . Traps Extracted . | . . . . . Installed . | . . . . . Triggered . | . . . . . Machines | -11 -10 -10 -9 -9 ---------- Run | Yrd Mat Min Mat Min Machines Disabled 2 | . 1 . 1 . Max in Single Turn 1 | . 1 . 1 . Machines Repaired . | . . . . . Machines Dismantled . | . . . . . Machines Sabotaged . | . . . . . Overloaded Fab Kills . | . . . . . Hacking | -11 -10 -10 -9 -9 --------- Run | Yrd Mat Min Mat Min Machines Accessed 9 | . 5 . 4 . Terminals 8 | . 5 . 3 . Fabricators . | . . . . . Repair Stations . | . . . . . Recycling Units . | . . . . . Scanalyzers 1 | . . . 1 . Garrison Access . | . . . . . Total Hacks 26 | . 12 . 14 . Successful 19 | . 7 . 12 . Failed 7 | . 5 . 2 . Catastrophic 1 | . . . 1 . Database Lockouts . | . . . . . Manual . | . . . . . Terminals 24 | . 12 . 12 . Fabricators . | . . . . . Repair Stations . | . . . . . Recycling Units . | . . . . . Scanalyzers 2 | . . . 2 . Garrison Access . | . . . . . Terminal Hacks 18 | . 7 . 11 . Record 12 | . 4 . 8 . Robot Analysis 1 | . 1 . . . Prototype ID Bank 1 | . . . 1 . Alert Level 1 | . 1 . . . Unreport Threat 2 | . . . 2 . Locate Traps 1 | . 1 . . . Fabricator Hacks . | . . . . . Repair Station Hacks . | . . . . . Recycling Unit Hacks . | . . . . . Scanalyzer 1 | . . . 1 . Insert Component 1 | . . . 1 . Garrison Access Hacks . | . . . . . Unauthorized Hacks . | . . . . . Terminals . | . . . . . Fabricators . | . . . . . Repair Stations . | . . . . . Recycling Units . | . . . . . Scanalyzers . | . . . . . Garrison Access . | . . . . . Data Cores Recovered . | . . . . . Used . | . . . . . Hacking Detections 5 | . 3 . 2 . Full Trace Events 1 | . . . 1 . Feedback Events . | . . . . . Feedback Blocked . | . . . . . Robot Schematics Acquired . | . . . . . Robots Built . | . . . . . Authchips . | . . . . . Time . | . . . . . Total Robot Build Rating . | . . . . . Part Schematics Acquired . | . . . . . Parts Built . | . . . . . Authchips . | . . . . . Time . | . . . . . Total Part Build Rating . | . . . . . Parts Repaired . | . . . . . Time . | . . . . . Parts Recycled . | . . . . . Recycled Matter . | . . . . . Retrieved Matter . | . . . . . Retrieved Components . | . . . . . Parts Scanalyzed 1 | . . . 1 . Part Schematics Acquired . | . . . . . Parts Damaged 1 | . . . 1 . Bothacking | -11 -10 -10 -9 -9 ------------ Run | Yrd Mat Min Mat Min Used RIF Installer . | . . . . . Robots Hacked . | . . . . . Non-combat . | . . . . . Combat . | . . . . . Robot Hacks Applied . | . . . . . Relay Couplers Released . | . . . . . Fabnet Peak Effective % . | . . . . . Robots Rewired . | . . . . . Allies Hacked . | . . . . . Hacks Repelled . | . . . . . Allies | -11 -10 -10 -9 -9 -------- Run | Yrd Mat Min Mat Min Total Allies . | . . . . . Largest Group . | . . . . . Highest-Rated Group . | . . . . . Highest-Rated Ally . | . . . . . Total Orders . | . . . . . Ally Attacks . | . . . . . Total Damage . | . . . . . Kills . | . . . . . Allies Corrupted . | . . . . . Allies Melted . | . . . . . Intel | -11 -10 -10 -9 -9 ------- Run | Yrd Mat Min Mat Min Robot Analysis Total 1 | . 1 . . . Derelict Logs Recovered 2 | . . 2 . . Drone Launches . | . . . . . Drone Recoveries . | . . . . . Exploration | -11 -10 -10 -9 -9 ------------- Run | Yrd Mat Min Mat Min Turns Passed 2531 | 51 688 587 886 319 Spaces Moved 1654 | 43 522 441 480 168 Core 12 | 11 . . 1 . Treads . | . . . . . Legs . | . . . . . Wheels 1642 | 32 522 441 479 168 Hover . | . . . . . Flight . | . . . . . Fastest Speed 50 | 50 90 90 140 130 Average Speed 122 | 91 101 116 149 137 Slowest Speed 1450 | 150 105 140 1450 160 Overloaded Moves . | . . . . . Propulsion Burnouts . | . . . . . Robots Hopped . | . . . . . Cave-ins Triggered . | . . . . . Exploration Rate (%) 47 | 3 82 90 37 25 Regions Visited 4 Branch Regions 2 Pre-discovered Areas . | . . . . . Known Exits Taken 1 | . . . 1 . Unknown Exits Taken 3 | 1 1 1 . . Scrap Searched 1 | . . 1 . . Spaces Dug 8 | . . . . 8 Terrain Destroyed 55 | . . . . 55 Melee . | . . . . . Projectile . | . . . . . AOE 55 | . . . . 55 Terrain Rammed . | . . . . . Walls Destroyed . | . . . . . Machines Disabled . | . . . . . Actions | -11 -10 -10 -9 -9 --------- Run | Yrd Mat Min Mat Min Total 1947 | 54 605 485 596 207 Wait 65 | . 8 12 35 10 Move 1650 | 42 521 440 479 168 Hop . | . . . . . Pick Up 43 | 7 19 3 13 1 Fast Attach . | . . . . . Attach 29 | 5 5 3 10 6 Detach 11 | . 2 2 7 . Swap 5 | . 4 1 . . Drop 17 | . 4 4 9 . Fire 117 | . 41 20 43 13 Melee . | . . . . . Ram 10 | . 1 . . 9 Kick . | . . . . . Crush . | . . . . . Escape Stasis . | . . . . . Rewire . | . . . . . Trap . | . . . . . Miscellaneous . | . . . . . Route ------- -11/Scrapyard -10/Materials (discovered 3 exits: *Mat / [*Min x2]) -10/Mines (discovered 2 exits: *Mat x2) -9/Materials (discovered 3 exits: [*Mat] / *Min x2) -9/Mines (discovered 1 exit: [Mat]) History --------- Turn | Location | Event 14 | -11/Scrapyard | Discovered new exit (range 16) 52 | -11/Scrapyard | Entered Materials 253 | -10/Materials | Discovered new exit (range 16) 317 | -10/Materials | Build established: Mutant 436 | -10/Materials | Discovered new exit (range 8) 705 | -10/Materials | Discovered new exit (range 12) 740 | -10/Materials | Entered Mines 741 | -10/Mines | Met a Derelict bent on vengeance 936 | -10/Mines | Assembled infested the area 938 | -10/Mines | Learned Materials stockpile data 969 | -10/Mines | Found a damaged Exp. Sensor Array with a note attached 980 | -10/Mines | Found Prototype Device 1039 | -10/Mines | A weapon hastily lodged in a ceiling crevice suddenly fell to the ground 1234 | -10/Mines | Discovered new exit (range 16) 1244 | -10/Mines | Discovered new exit (range 11) 1267 | -10/Mines | Core integrity fell below 50% 1327 | -10/Mines | Entered Materials 1327 | -9/Materials | Evolved 2 slots: Power x1, Utility x1 1328 | -9/Materials | Identified exit to Mines 1887 | -9/Materials | Build established: Scavenger-Mutant 1892 | -9/Materials | Discovered new exit (range 5) 1980 | -9/Materials | Identified Exp. Sensor Array 2213 | -9/Materials | Entered Mines 2215 | -9/Mines | Discovered new exit (range 14) 2248 | -9/Mines | Lost 4 parts (1p2n1w) 2394 | -9/Mines | Core integrity fell below 50% 2406 | -9/Mines | Lost 3 parts (1u2w) 2497 | -9/Mines | Core integrity fell below 20% 2517 | -9/Mines | Build established: Mutant 2532 | -9/Mines | Destroyed by G-34 Mercenary with Small Laser Last Messages --------------- Slammed into U-05 Engineer. Destroyed Lgt. Ion Engine. U-05 Engineer system corrupted by crushing effect. U-05 Engineer knocked back. U-05 Engineer system terminally corrupted. Terrain Scan Processor fried. Wheel fried. Structural Scanner fried. Acquired 21 matter. Wheel destroyed. Com. Wheel destroyed. Slammed into G-34 Mercenary. Wheel broken. Destabilizing: Short circuit. Slammed into G-34 Mercenary. Arm. Wheel broken. Destabilizing: Short circuit. Broken Wheel destroyed. Slammed into G-34 Mercenary. Map ----- +----------------------------------------------------+ | | | ?????????????????????????????????????????????????? | | ?????????????????????????????????????????????????? | | ?????????????????????????????????????????????????? | | ?????????????????????????????????????????????????? | | ?????????????????????????????????????????????????? | | ?????????????????????????????????????????????????? | | ?????????????????????????????????????????#???????? | | ?????????????????????????????????????????????????? | | ???????????????????????????????????????#?????####? | | ??????????????????????????#??##?????????????## #? | | ?????????????????#??????#?##?#?????????#????# #? | | ????????????????????????????#???????????????# #? | | ??????????????? ???#???#???#??###???????????## #? | | ???????????????????##????#?????#???#?????????# #? | | ?????????????????????#??????????#???????????## #? | | ????????????????????#?????#???#??#?#????#???# ## | | ????????????